fUSD/lending_fUSD_20250811
["ID","MTS","AMOUNT","RATE_DAILY","PERIOD"]
[378631084,1754932252067,-566.01,0.00016438,2]
[378631085,1754932252078,-1382.19,0.00016438,2]
[378631086,1754932252092,-463.93,0.00016438,2]
[378631087,1754932252102,-400.0,0.00016438,2]
[378631088,1754932252111,-2229.72,0.00016438,2]
[378631089,1754932252120,-642.98,0.00016438,2]
[378631090,1754932252131,-562.59,0.00016438,2]
[378631091,1754932252141,-400.0,0.00016438,2]
[378631092,1754932252151,-2941.52,0.00016438,2]
[378631093,1754932252161,-790.62,0.00016438,2]
[378631094,1754932252171,-591.59,0.00016438,2]
[378631095,1754932252180,-925.86,0.00016438,2]
[378631096,1754932252190,-969.8,0.00016438,2]
[378631097,1754932252200,-400.0,0.00016438,2]
[378631098,1754932252210,-400.0,0.00016438,2]
[378631099,1754932252220,-400.0,0.00016438,2]
[378631100,1754932252230,-400.0,0.00016438,2]
[378631101,1754932252239,-649.1,0.00016438,2]
[378631102,1754932252249,-517.76,0.00016438,2]
[378631103,1754932252258,-766.66,0.00016438,2]
[378631104,1754932252267,-400.0,0.00016438,2]
[378631105,1754932252277,-952.16,0.00016438,2]
[378631106,1754932252286,-400.0,0.00016438,2]
[378631107,1754932252296,-696.21,0.00016438,2]
[378631108,1754932252306,-1091.25,0.00016438,2]
[378631109,1754932252315,-3426.62,0.00016438,2]
[378631110,1754932252324,-400.0,0.00016438,2]
[378631111,1754932252334,-400.0,0.00016438,2]
[378631112,1754932252343,-400.0,0.00016438,2]
[378631113,1754932252352,-400.0,0.00016438,2]
[378631114,1754932252362,-750.75,0.00016438,2]
[378631115,1754932252372,-1137.88,0.00016438,2]
[378631116,1754932252381,-400.0,0.00016438,2]
[378631117,1754932252391,-988.89,0.00016438,2]
[378631118,1754932252400,-1851.45,0.00016438,2]
[378631119,1754932252410,-861.18812094,0.00016438,2]
[378631120,1754932253137,-349.9999995,0.00016438,2]
[378631121,1754932253230,-248.23187956,0.00016438,2]
[378631122,1754932253239,-436.51,0.00016438,2]
[378631123,1754932253250,-486.58,0.00016438,2]
[378631124,1754932253259,-7.01609988,0.00016438,2]
[378631125,1754932253289,-392.98390012,0.00016438,2]
[378631126,1754932253299,-400.0,0.00016438,2]
[378631127,1754932253309,-747.7,0.00016438,2]
[378631128,1754932253318,-1903.56,0.00016438,2]
[378631129,1754932253328,-2063.0,0.00016438,2]
[378631130,1754932253338,-596.74,0.00016438,2]
[378631131,1754932253347,-1195.3,0.00016438,2]
[378631132,1754932253357,-1458.23,0.00016438,2]
[378631133,1754932253366,-817.48,0.00016438,2]
[378631134,1754932253376,-400.0,0.00016438,2]
[378631135,1754932253386,-400.0,0.00016438,2]
[378631136,1754932253395,-400.0,0.00016438,2]
[378631137,1754932253405,-1562.71,0.00016438,2]
[378631138,1754932253414,-585.37,0.00016438,2]
[378631139,1754932253423,-400.61799572,0.00016438,2]
[378631140,1754932253435,-1070.72200428,0.00016438,2]
[378631141,1754932253445,-400.0,0.00016438,2]
[378631142,1754932253454,-708.28,0.00016438,2]
[378631143,1754932253464,-2803.86,0.00016438,2]
[378631144,1754932253473,-400.0,0.00016438,2]
[378631145,1754932253483,-685.52,0.00016438,2]
[378631146,1754932253493,-2474.99,0.00016438,2]
[378631147,1754932253503,-443.61,0.00016438,2]
[378631148,1754932253512,-2066.74,0.00016438,2]
[378631149,1754932253522,-790.07740188,0.00016438,2]
[378631150,1754932299639,236.8,0.00015594,2]
[378631151,1754932388598,150.0,9.7e-05,2]
[378631152,1754932388930,150.0,0.0001088,2]
[378631156,1754932453645,570.36,0.00015604,2]
[378631157,1754932478302,266.77086512,0.0001598,2]
[378631158,1754932487023,163.32,0.00015611,2]
[378631159,1754932515632,509.0,0.00015891,2]
[378631165,1754932676764,12685.17650788,0.00015542,2]
[378631166,1754932676785,11214.82349212,0.00015542,2]
[378631167,1754932694648,3785.17650788,0.00015542,2]
[378631168,1754932694672,12683.71349212,0.00015542,2]
[378631173,1754932900409,150.0,9.7e-05,2]
[378631174,1754932996650,152.58,0.00015472,2]
[378631175,1754933023592,166.17,0.00015473,2]
[378631176,1754933118976,1000.0,0.00015446,2]
[378631178,1754933130949,248.36,0.00013699,2]
[378631179,1754933188489,172.41,0.00015507,2]
[378631180,1754933198517,170.0,0.0001549,7]
[378631181,1754933205854,256.76650788,0.00015314,2]
[378631182,1754933205876,252.23349212,0.00015314,2]
[378631183,1754933225358,200.0,0.000159,5]
[378631184,1754933279812,500.0,0.000159,2]
[378631191,1754933323275,570.79,0.000159,2]
[378631193,1754933352232,-172.12,0.00016013,2]
[378631194,1754933352252,-219.3011451,0.00016091,2]
[378631195,1754933352272,-160.99341319,0.00016235,2]
[378631196,1754933352293,-500.0,0.00016235,2]
[378631197,1754933352313,-260.35746622,0.00016235,2]
[378631198,1754933352336,-183.44646785,0.00016235,2]
[378631199,1754933352357,-352.84462155,0.00016235,2]
[378631200,1754933352379,-1200.0,0.00016236,2]
[378631201,1754933352402,-300.0,0.00016237,2]
[378631202,1754933352425,-4076.24235148,0.00016238,2]
[378631203,1754933352446,-2500.0,0.00016238,2]
[378631204,1754933352468,-1000.0,0.00016238,2]
[378631205,1754933352489,-2551.67104249,0.00016238,2]
[378631247,1754933392639,-4359.72315751,0.00016238,2]
[378631248,1754933392660,-1640.27684249,0.0001627,2]
[378631257,1754933431620,-1200.0,0.00016269,2]
[378631258,1754933431630,-1238.22860751,0.0001627,2]
[378631259,1754933431640,-2878.50546,0.0001627,2]
[378631260,1754933431650,-300.0,0.00016276,2]
[378631261,1754933431659,-177.057,0.00016277,2]
[378631262,1754933431668,-1976.233,0.00016277,2]
[378631263,1754933431678,-16231.97593249,0.0001628,2]
[378631264,1754933431702,-3970.995168,0.0001628,2]
[378631265,1754933431734,-3894.07704412,0.0001628,2]
[378631266,1754933431745,-2424.25295642,0.0001628,2]
[378631267,1754933431755,-151.0,0.00016328,2]
[378631268,1754933431765,-2183.31810187,0.00016328,2]
[378631269,1754933431774,-231.28369723,0.00016328,2]
[378631270,1754933431783,-152.23967472,0.00016338,2]
[378631271,1754933431793,-169.67675257,0.00016338,2]
[378631272,1754933431802,-2061.0491067,0.00016338,2]
[378631273,1754933431812,-151.79764022,0.00016338,2]
[378631274,1754933431831,-1000.0,0.00016338,2]
[378631275,1754933431851,-2949.7885,0.00016338,2]
[378631276,1754933431871,-65494.56474827,0.00016338,2]
[378631277,1754933431883,-121387.30059155,0.00016338,2]
[378631278,1754933431894,-3303.05046018,0.00016338,2]
[378631279,1754933431905,-1500.0,0.00016338,2]
[378631280,1754933431914,-2878.50545,0.0001634,2]
[378631281,1754933431923,-1274.8815328,0.00016383,2]
[378631282,1754933431934,-511.47952386,0.00016383,2]
[378631283,1754933431945,-477.73981498,0.00016383,2]
[378631284,1754933431955,-2026.31544167,0.000164,2]
[378631285,1754933431966,-693.1571524,0.000164,2]
[378631286,1754933431999,-159.03286593,0.000164,2]
[378631287,1754933432008,-4076.2423514,0.00016423,2]
[378631288,1754933432016,-200.0,0.00016428,2]
[378631289,1754933432026,-346.92554585,0.00016428,2]
[378631290,1754933432035,-600.0,0.00016428,2]
[378631291,1754933432044,-209.40437685,0.00016428,2]
[378631293,1754933432053,-500.0,0.00016428,2]
[378631294,1754933432062,-500.0,0.00016428,2]
[378631295,1754933432072,-500.0,0.00016428,2]
[378631297,1754933432081,-500.0,0.00016428,2]
[378631299,1754933432090,-151.0,0.00016428,2]
[378631300,1754933432098,-250.0,0.00016428,2]
[378631302,1754933432108,-250.0,0.00016428,2]
[378631304,1754933432117,-500.0,0.00016428,2]
[378631305,1754933432126,-250.0,0.00016428,2]
[378631306,1754933432135,-500.0,0.00016428,2]
[378631307,1754933432144,-250.0,0.00016428,2]
[378631308,1754933432154,-160.0,0.00016428,2]
[378631309,1754933432164,-500.0,0.00016428,2]
[378631310,1754933432177,-250.0,0.00016428,2]
[378631311,1754933432187,-167.64016421,0.00016428,2]
[378631313,1754933432196,-500.0,0.00016428,2]
[378631314,1754933432205,-151.0,0.00016428,2]
[378631315,1754933432215,-500.0,0.00016428,2]
[378631316,1754933432225,-151.0,0.00016428,2]
[378631317,1754933432235,-250.0,0.00016428,2]
[378631318,1754933432244,-151.0,0.00016428,2]
[378631319,1754933432253,-500.0,0.00016428,2]
[378631320,1754933432263,-250.0,0.00016428,2]
[378631321,1754933432272,-500.0,0.00016428,2]
[378631322,1754933432282,-250.0,0.00016428,2]
[378631323,1754933432291,-500.0,0.00016428,2]
[378631324,1754933432300,-250.0,0.00016428,2]
[378631325,1754933432309,-250.0,0.00016428,2]
[378631326,1754933432318,-500.0,0.00016428,2]
[378631327,1754933432328,-250.0,0.00016428,2]
[378631328,1754933432337,-250.0,0.00016428,2]
[378631330,1754933432347,-1438.09495884,0.00016428,2]
[378631332,1754933432356,-500.0,0.00016428,2]
[378631334,1754933432366,-250.0,0.00016428,2]
[378631336,1754933432376,-500.0,0.00016428,2]
[378631337,1754933432386,-250.0,0.00016428,2]
[378631338,1754933432396,-151.0,0.00016428,2]
[378631339,1754933432405,-250.0,0.00016428,2]
[378631340,1754933432414,-151.0,0.00016428,2]
[378631341,1754933432424,-500.0,0.00016428,2]
[378631342,1754933432437,-500.0,0.00016428,2]
[378631343,1754933432446,-250.0,0.00016428,2]
[378631344,1754933432455,-250.0,0.00016428,2]
[378631345,1754933432466,-500.0,0.00016428,2]
[378631346,1754933432477,-151.0,0.00016428,2]
[378631347,1754933432487,-363.26492725,0.00016428,2]
[378631348,1754933432496,-500.0,0.00016428,2]
[378631349,1754933432506,-151.0,0.00016428,2]
[378631350,1754933432516,-500.0,0.00016428,2]
[378631351,1754933432526,-151.0,0.00016428,2]
[378631352,1754933432535,-500.0,0.00016428,2]
[378631353,1754933432545,-157.55548253,0.00016428,2]
[378631354,1754933432554,-250.0,0.00016428,2]
[378631355,1754933432564,-500.0,0.00016428,2]
[378631356,1754933432574,-250.0,0.00016428,2]
[378631357,1754933432584,-500.0,0.00016428,2]
[378631358,1754933432594,-300.0,0.00016428,2]
[378631359,1754933432604,-250.0,0.00016428,2]
[378631360,1754933432614,-317.76167784,0.00016428,2]
[378631361,1754933432623,-500.0,0.00016428,2]
[378631362,1754933432633,-250.0,0.00016428,2]
[378631363,1754933432642,-416.6760965,0.00016428,2]
[378631364,1754933432651,-500.0,0.00016428,2]
[378631365,1754933432661,-154.8624278,0.00016428,2]
[378631366,1754933432892,-500.0,0.00016428,2]
[378631367,1754933432908,-500.0,0.00016428,2]
[378631368,1754933432918,-500.0,0.00016428,2]
[378631369,1754933432928,-500.0,0.00016428,2]
[378631370,1754933432937,-500.0,0.00016428,2]
[378631371,1754933432946,-500.0,0.00016428,2]
[378631372,1754933432955,-151.0,0.00016428,2]
[378631373,1754933432965,-500.0,0.00016428,2]
[378631374,1754933432978,-500.0,0.00016428,2]
[378631375,1754933432988,-500.0,0.00016428,2]
[378631376,1754933432997,-500.0,0.00016428,2]
[378631377,1754933433006,-326.73867833,0.00016428,2]
[378631378,1754933433016,-200.0,0.00016428,2]
[378631379,1754933433025,-500.0,0.00016428,2]
[378631380,1754933433036,-500.0,0.00016428,2]
[378631381,1754933433045,-500.0,0.00016428,2]
[378631382,1754933433055,-500.0,0.00016428,2]
[378631383,1754933433065,-500.0,0.00016428,2]
[378631384,1754933433075,-500.0,0.00016428,2]
[378631385,1754933433085,-500.0,0.00016428,2]
[378631386,1754933433096,-500.0,0.00016428,2]
[378631387,1754933433105,-473.023936,0.00016428,2]
[378631388,1754933433115,-400.0,0.00016438,2]
[378631389,1754933433124,-400.0,0.00016438,2]
[378631390,1754933433134,-426.7,0.00016438,2]
[378631391,1754933433144,-292.10782184,0.00016438,2]
[378631392,1754933433679,-107.89217816,0.00016438,2]
[378631393,1754933433689,-420.93,0.00016438,2]
[378631394,1754933433699,-400.0,0.00016438,2]
[378631395,1754933433919,-272.37782184,0.00016438,2]
[378631396,1754933433932,-127.62217816,0.00016438,2]
[378631397,1754933433941,-400.0,0.00016438,2]
[378631398,1754933433951,-400.0,0.00016438,2]
[378631399,1754933433960,-400.0,0.00016438,2]
[378631400,1754933433970,-400.0,0.00016438,2]
[378631401,1754933433982,-466.96,0.00016438,2]
[378631402,1754933433992,-400.0,0.00016438,2]
[378631403,1754933434002,-400.0,0.00016438,2]
[378631404,1754933434011,-610.18,0.00016438,2]
[378631405,1754933434020,-417.03,0.00016438,2]
[378631406,1754933434030,-400.0,0.00016438,2]
[378631407,1754933434039,-400.0,0.00016438,2]
[378631408,1754933434048,-400.0,0.00016438,2]
[378631409,1754933434058,-400.0,0.00016438,2]
[378631410,1754933434068,-400.0,0.00016438,2]
[378631411,1754933434077,-462.68177394,0.00016438,2]
[378631412,1754933434087,-400.0,0.00016438,2]
[378631413,1754933434096,-400.0,0.00016438,2]
[378631414,1754933434106,-400.0,0.00016438,2]
[378631415,1754933434115,-400.0,0.00016438,2]
[378631416,1754933434124,-400.0,0.00016438,2]
[378631417,1754933434134,-400.0,0.00016438,2]
[378631418,1754933434144,-249.05827886,0.00016438,2]
[378631419,1754933434154,-400.0,0.00016438,2]
[378631420,1754933434163,-400.0,0.00016438,2]
[378631421,1754933434173,-400.0,0.00016438,2]
[378631422,1754933434182,-470.27604845,0.00016438,2]
[378631423,1754933434192,-400.0,0.00016438,2]
[378631424,1754933434201,-400.0,0.00016438,2]
[378631425,1754933434211,-400.0,0.00016438,2]
[378631426,1754933434220,-400.0,0.00016438,2]
[378631427,1754933434231,-460.2,0.00016438,2]
[378631428,1754933434241,-400.0,0.00016438,2]
[378631429,1754933434250,-552.98,0.00016438,2]
[378631430,1754933434259,-400.0,0.00016438,2]
[378631431,1754933434269,-400.0,0.00016438,2]
[378631432,1754933434279,-473.23,0.00016438,2]
[378631433,1754933434288,-400.0,0.00016438,2]
[378631434,1754933434299,-546.64,0.00016438,2]
[378631435,1754933434308,-400.0,0.00016438,2]
[378631436,1754933434318,-400.0,0.00016438,2]
[378631437,1754933434327,-400.0,0.00016438,2]
[378631438,1754933434338,-400.0,0.00016438,2]
[378631439,1754933434348,-6356.1417206,0.00016438,2]
[378631440,1754933434387,-541.29134377,0.00016438,2]
[378631441,1754933434408,-35921.3408094,0.00016438,2]
[378631442,1754933435096,273.49,0.00015481,2]
[378631444,1754933437535,-286.70449866,0.00016438,2]
[378631445,1754933437591,-508.58479256,0.00016438,2]
[378631446,1754933437604,-9322.09798711,0.00016438,2]
[378631447,1754933437614,-573.7,0.00016438,2]
[378631448,1754933437624,-400.0,0.00016438,2]
[378631449,1754933437634,-400.0,0.00016438,2]
[378631450,1754933437643,-400.0,0.00016438,2]
[378631451,1754933437653,-400.0,0.00016438,2]
[378631452,1754933437663,-400.0,0.00016438,2]
[378631453,1754933437673,-499.44,0.00016438,2]
[378631454,1754933437683,-605.74,0.00016438,2]
[378631455,1754933437693,-400.0,0.00016438,2]
[378631456,1754933437703,-400.0,0.00016438,2]
[378631457,1754933437713,-404.90004966,0.00016438,2]
[378631459,1754933437723,-400.0,0.00016438,2]
[378631462,1754933437735,-467.4,0.00016438,2]
[378631464,1754933437745,-400.0,0.00016438,2]
[378631466,1754933437755,-413.24,0.00016438,2]
[378631468,1754933437764,-553.84,0.00016438,2]
[378631470,1754933437774,-203.08533599,0.00016438,2]
[378631472,1754933437787,-196.91466401,0.00016438,2]
[378631474,1754933437797,-438.75,0.00016438,2]
[378631476,1754933437807,-400.0,0.00016438,2]
[378631478,1754933437816,-197.33949971,0.00016438,2]
[378631480,1754933437827,-202.66050029,0.00016438,2]
[378631482,1754933437838,-400.0,0.00016438,2]
[378631484,1754933437847,-400.0,0.00016438,2]
[378631486,1754933437857,-400.0,0.00016438,2]
[378631488,1754933437866,-1020.28,0.00016438,2]
[378631490,1754933437875,-215.08117092,0.00016438,2]
[378631492,1754933437884,-400.0,0.00016438,2]
[378631494,1754933437894,-164.04378495,0.00016438,2]
[378631497,1754933437905,-235.95621505,0.00016438,2]
[378631498,1754933437915,-434.20866816,0.00016438,2]
[378631500,1754933437926,-275.67133184,0.00016438,2]
[378631502,1754933437935,-400.0,0.00016438,2]
[378631504,1754933437944,-463.22,0.00016438,2]
[378631506,1754933437953,-200.0,0.00016438,2]
[378631508,1754933437963,-400.0,0.00016438,2]
[378631510,1754933437972,-500.0,0.00016438,2]
[378631511,1754933437983,-500.0,0.00016438,2]
[378631513,1754933437992,-656.75,0.00016438,2]
[378631515,1754933438002,-487.89,0.00016438,2]
[378631517,1754933438011,-459.58,0.00016438,2]
[378631519,1754933438021,-158.529881,0.00016438,2]
[378631521,1754933438030,-400.0,0.00016438,2]
[378631523,1754933438039,-400.0,0.00016438,2]
[378631525,1754933438049,-190.49469948,0.00016438,2]
[378631528,1754933438067,-375.91530052,0.00016438,2]
[378631530,1754933438077,-672.709957,0.00016438,2]
[378631532,1754933438086,-400.0,0.00016438,2]
[378631534,1754933438095,-400.0,0.00016438,2]
[378631536,1754933438104,-400.0,0.00016438,2]
[378631538,1754933438114,-954.02,0.00016438,2]
[378631540,1754933438123,-1103.861901,0.00016438,2]
[378631542,1754933438132,-403.23,0.00016438,2]
[378631544,1754933438142,-400.0,0.00016438,2]
[378631546,1754933438151,-400.0,0.00016438,2]
[378631548,1754933438160,-547.12902422,0.00016438,2]
[378631550,1754933438170,-415.41,0.00016438,2]
[378631552,1754933438179,-641.19,0.00016438,2]
[378631554,1754933438188,-400.0,0.00016438,2]
[378631556,1754933438197,-535.4,0.00016438,2]
[378631558,1754933438207,-886.08,0.00016438,2]
[378631560,1754933438216,-400.0,0.00016438,2]
[378631562,1754933438226,-636.59,0.00016438,2]
[378631564,1754933438237,-589.89,0.00016438,2]
[378631566,1754933438246,-400.0,0.00016438,2]
[378631568,1754933438255,-434.37,0.00016438,2]
[378631570,1754933438265,-414.49,0.00016438,2]
[378631572,1754933438275,-400.0,0.00016438,2]
[378631574,1754933438284,-689.47,0.00016438,2]
[378631576,1754933438293,-400.0,0.00016438,2]
[378631578,1754933438303,-577.88,0.00016438,2]
[378631580,1754933438312,-949.18,0.00016438,2]
[378631581,1754933438322,-1170.66289,0.00016438,2]
[378631583,1754933438331,-414.41,0.00016438,2]
[378631585,1754933438340,-400.0,0.00016438,2]
[378631587,1754933438349,-400.0,0.00016438,2]
[378631589,1754933438359,-641.43,0.00016438,2]
[378631591,1754933438368,-400.0,0.00016438,2]
[378631593,1754933438378,-400.0,0.00016438,2]
[378631595,1754933438387,-400.0,0.00016438,2]
[378631597,1754933438396,-519.41,0.00016438,2]
[378631599,1754933438406,-972.66,0.00016438,2]
[378631601,1754933438415,-816.64,0.00016438,2]
[378631603,1754933438426,-436.91,0.00016438,2]
[378631605,1754933438437,-698.52,0.00016438,2]
[378631607,1754933438448,-607.9,0.00016438,2]
[378631609,1754933438458,-400.0,0.00016438,2]
[378631611,1754933438467,-1211.81,0.00016438,2]
[378631613,1754933438479,-400.0,0.00016438,2]
[378631615,1754933438488,-158.120984,0.00016438,2]
[378631617,1754933438498,-619.12,0.00016438,2]
[378631620,1754933438509,-400.0,0.00016438,2]
[378631622,1754933438520,-268.89161705,0.00016438,2]
[378631624,1754933438530,-810.1,0.00016438,2]
[378631626,1754933438539,-779.61,0.00016438,2]
[378631628,1754933438548,-400.0,0.00016438,2]
[378631630,1754933438557,-498.04,0.00016438,2]
[378631631,1754933438567,-1079.36,0.00016438,2]
[378631633,1754933438577,-716.6,0.00016438,2]
[378631635,1754933438589,-400.0,0.00016438,2]
[378631637,1754933438599,-400.0,0.00016438,2]
[378631639,1754933438608,-842.7,0.00016438,2]
[378631641,1754933438618,-400.0,0.00016438,2]
[378631643,1754933438627,-410.79,0.00016438,2]
[378631646,1754933438637,-400.0,0.00016438,2]
[378631647,1754933438646,-400.0,0.00016438,2]
[378631649,1754933438655,-949.53,0.00016438,2]
[378631651,1754933438665,-400.0,0.00016438,2]
[378631653,1754933438675,-403.81047275,0.00016438,2]
[378631655,1754933438685,-400.0,0.00016438,2]
[378631657,1754933438695,-400.0,0.00016438,2]
[378631659,1754933438705,-418.81,0.00016438,2]
[378631661,1754933438714,-546.02,0.00016438,2]
[378631663,1754933438724,-420.55,0.00016438,2]
[378631665,1754933438735,-829.52,0.00016438,2]
[378631667,1754933438745,-400.0,0.00016438,2]
[378631669,1754933438754,-724.34,0.00016438,2]
[378631671,1754933438763,-453.2795556,0.00016438,2]
[378631674,1754933438779,-639.2004444,0.00016438,2]
[378631676,1754933438789,-400.0,0.00016438,2]
[378631678,1754933438798,-400.0,0.00016438,2]
[378631680,1754933438807,-400.0,0.00016438,2]
[378631682,1754933438817,-400.0,0.00016438,2]
[378631684,1754933438826,-400.0,0.00016438,2]
[378631686,1754933438835,-437.06,0.00016438,2]
[378631688,1754933438845,-400.0,0.00016438,2]
[378631690,1754933438854,-647.7,0.00016438,2]
[378631692,1754933438864,-560.82,0.00016438,2]
[378631694,1754933438873,-400.0,0.00016438,2]
[378631696,1754933438883,-500.24,0.00016438,2]
[378631707,1754933438979,-444.6,0.00016438,2]
[378631709,1754933438989,-400.0,0.00016438,2]
[378631711,1754933438998,-689.17,0.00016438,2]
[378631713,1754933439007,-709.21,0.00016438,2]
[378631715,1754933439016,-616.19,0.00016438,2]
[378631717,1754933439025,-400.0,0.00016438,2]
[378631718,1754933439034,-400.0,0.00016438,2]
[378631720,1754933439043,-780.22,0.00016438,2]
[378631722,1754933439053,-605.72,0.00016438,2]
[378631724,1754933439062,-400.0,0.00016438,2]
[378631726,1754933439071,-400.0,0.00016438,2]
[378631728,1754933439080,-929.39,0.00016438,2]
[378631730,1754933439089,-306.59752745,0.00016438,2]
[378631732,1754933439099,-400.0,0.00016438,2]
[378631734,1754933439108,-636.99,0.00016438,2]
[378631736,1754933439117,-400.0,0.00016438,2]
[378631738,1754933439126,-400.0,0.00016438,2]
[378631740,1754933439135,-400.0,0.00016438,2]
[378631742,1754933439143,-658.4,0.00016438,2]
[378631744,1754933439152,-912.48,0.00016438,2]
[378631746,1754933439162,-400.0,0.00016438,2]
[378631747,1754933439171,-400.0,0.00016438,2]
[378631750,1754933439180,-465.59,0.00016438,2]
[378631751,1754933439190,-521.88,0.00016438,2]
[378631753,1754933439199,-531.78,0.00016438,2]
[378631755,1754933439208,-571.48,0.00016438,2]
[378631757,1754933439217,-400.0,0.00016438,2]
[378631759,1754933439229,-466.3,0.00016438,2]
[378631761,1754933439239,-400.0,0.00016438,2]
[378631763,1754933439249,-400.0,0.00016438,2]
[378631765,1754933439258,-400.0,0.00016438,2]
[378631767,1754933439267,-400.0,0.00016438,2]
[378631769,1754933439276,-1145.49,0.00016438,2]
[378631771,1754933439286,-400.0,0.00016438,2]
[378631773,1754933439295,-757.67,0.00016438,2]
[378631775,1754933439304,-400.0,0.00016438,2]
[378631777,1754933439313,-608.84,0.00016438,2]
[378631779,1754933439323,-418.01,0.00016438,2]
[378631781,1754933439332,-400.0,0.00016438,2]
[378631783,1754933439341,-400.0,0.00016438,2]
[378631785,1754933439350,-400.0,0.00016438,2]
[378631787,1754933439359,-579.1,0.00016438,2]
[378631789,1754933439368,-400.0,0.00016438,2]
[378631791,1754933439378,-400.0,0.00016438,2]
[378631793,1754933439388,-240.7589288,0.00016438,2]
[378631795,1754933439397,-678.77,0.00016438,2]
[378631797,1754933439406,-400.0,0.00016438,2]
[378631799,1754933439415,-400.0,0.00016438,2]
[378631801,1754933439425,-400.0,0.00016438,2]
[378631803,1754933439437,-708.56,0.00016438,2]
[378631805,1754933439446,-622.06,0.00016438,2]
[378631807,1754933439455,-400.0,0.00016438,2]
[378631809,1754933439465,-300.0,0.00016438,2]
[378631811,1754933439475,-400.0,0.00016438,2]
[378631813,1754933439485,-449.57,0.00016438,2]
[378631815,1754933439498,-400.0,0.00016438,2]
[378631817,1754933439509,-400.0,0.00016438,2]
[378631819,1754933439519,-480.33,0.00016438,2]
[378631821,1754933439527,-160.99262378,0.00016438,2]
[378631823,1754933439536,-400.0,0.00016438,2]
[378631825,1754933439546,-400.0,0.00016438,2]
[378631827,1754933439555,-834.89,0.00016438,2]
[378631829,1754933439564,-540.34,0.00016438,2]
[378631831,1754933439573,-716.54,0.00016438,2]
[378631833,1754933439582,-588.01,0.00016438,2]
[378631835,1754933439593,-400.0,0.00016438,2]
[378631837,1754933439602,-400.0,0.00016438,2]
[378631839,1754933439611,-400.0,0.00016438,2]
[378631841,1754933439621,-2446.66,0.00016438,2]
[378631843,1754933439630,-402.50214616,0.00016438,2]
[378631845,1754933439641,-210.10914328,0.00016438,2]
[378631848,1754933439657,-189.89085672,0.00016438,2]
[378631850,1754933439666,-947.69,0.00016438,2]
[378631852,1754933439677,-514.18,0.00016438,2]
[378631854,1754933439686,-400.0,0.00016438,2]
[378631856,1754933439695,-400.0,0.00016438,2]
[378631858,1754933439704,-400.0,0.00016438,2]
[378631860,1754933439713,-460.0,0.00016438,2]
[378631862,1754933439726,-400.0,0.00016438,2]
[378631864,1754933439736,-630.23,0.00016438,2]
[378631866,1754933439745,-448.93,0.00016438,2]
[378631868,1754933439755,-783.42,0.00016438,2]
[378631870,1754933439764,-400.0,0.00016438,2]
[378631872,1754933439773,-400.0,0.00016438,2]
[378631874,1754933439782,-571.87,0.00016438,2]
[378631876,1754933439792,-400.0,0.00016438,2]
[378631878,1754933439801,-400.0,0.00016438,2]